fUST/lending_fUST_20250821
["ID","MTS","AMOUNT","RATE_DAILY","PERIOD"]
[380411315,1755748254707,-480.0,0.00022768,3]
[380411316,1755748254716,-480.0,0.00022768,3]
[380411317,1755748254726,-480.0,0.00022768,3]
[380411318,1755748254735,-480.0,0.00022768,3]
[380411319,1755748254745,-480.0,0.00022768,3]
[380411320,1755748254754,-563.96,0.00022768,3]
[380411321,1755748254764,-461.55293979,0.00022768,3]
[380411322,1755748254774,-480.0,0.00022768,3]
[380411323,1755748254783,-480.0,0.00022768,3]
[380411324,1755748254793,-480.0,0.00022768,3]
[380411325,1755748254802,-480.0,0.00022768,3]
[380411326,1755748254812,-480.0,0.00022768,3]
[380411327,1755748254822,-480.0,0.00022768,3]
[380411328,1755748254831,-480.0,0.00022768,3]
[380411329,1755748254841,-480.0,0.00022768,3]
[380411330,1755748254851,-480.0,0.00022768,3]
[380411331,1755748254860,-441.32409536,0.00022768,3]
[380411332,1755748254870,-480.0,0.00022768,3]
[380411333,1755748254879,-480.0,0.00022768,3]
[380411334,1755748254889,-480.0,0.00022768,3]
[380411335,1755748254899,-480.0,0.00022768,3]
[380411336,1755748254908,-480.0,0.00022768,3]
[380411337,1755748254918,-480.0,0.00022768,3]
[380411338,1755748254927,-480.0,0.00022768,3]
[380411339,1755748254937,-480.0,0.00022768,3]
[380411340,1755748254947,-480.0,0.00022768,3]
[380411341,1755748254956,-1056.3,0.00022768,3]
[380411342,1755748254966,-480.0,0.00022768,3]
[380411343,1755748254975,-480.0,0.00022768,3]
[380411344,1755748254985,-480.0,0.00022768,3]
[380411345,1755748254994,-480.0,0.00022768,3]
[380411346,1755748255003,-381.81812189,0.00022768,3]
[380411347,1755748255013,-549.69,0.00022768,3]
[380411348,1755748255022,-480.0,0.00022768,3]
[380411349,1755748255031,-467.10223512,0.00022768,3]
[380411350,1755748255041,-480.0,0.00022768,3]
[380411351,1755748255051,-480.0,0.00022768,3]
[380411352,1755748255060,-480.0,0.00022768,3]
[380411353,1755748255070,-480.0,0.00022768,3]
[380411354,1755748255081,-672.59,0.00022768,3]
[380411355,1755748255091,-480.0,0.00022768,3]
[380411356,1755748255100,-480.0,0.00022768,3]
[380411357,1755748255110,-480.0,0.00022768,3]
[380411358,1755748255119,-480.0,0.00022768,3]
[380411359,1755748255129,-480.0,0.00022768,3]
[380411360,1755748255138,-3167.79,0.00022768,3]
[380411361,1755748255147,-480.0,0.00022768,3]
[380411362,1755748255156,-480.0,0.00022768,3]
[380411363,1755748255166,-1252.19,0.00022768,3]
[380411364,1755748255176,-480.0,0.00022768,3]
[380411365,1755748255186,-480.0,0.00022768,3]
[380411366,1755748255195,-582.11,0.00022768,3]
[380411367,1755748255207,-481.72758987,0.00022768,3]
[380411368,1755748255217,-480.0,0.00022768,3]
[380411369,1755748255227,-423.2918939,0.00022768,3]
[380411370,1755748255236,-480.0,0.00022768,3]
[380411371,1755748255246,-480.0,0.00022768,3]
[380411372,1755748255255,-480.0,0.00022768,3]
[380411373,1755748255265,-480.0,0.00022768,3]
[380411374,1755748255276,-480.0,0.00022768,3]
[380411375,1755748255285,-480.0,0.00022768,3]
[380411376,1755748255294,-480.0,0.00022768,3]
[380411377,1755748255304,-420.451648,0.00022768,3]
[380411378,1755748255314,-480.0,0.00022768,3]
[380411379,1755748255327,-480.0,0.00022768,3]
[380411380,1755748255338,-365.38941581,0.00022768,3]
[380411381,1755748255347,-480.0,0.00022768,3]
[380411382,1755748255357,-480.0,0.00022768,3]
[380411383,1755748255367,-480.0,0.00022768,3]
[380411384,1755748255377,-480.0,0.00022768,3]
[380411385,1755748255387,-150.84265623,0.00022773,2]
[380411386,1755748255396,-1001.34790328,0.00022773,2]
[380411387,1755748255408,-210.46484385,0.00022821,2]
[380411388,1755748255423,-332.77917563,0.00022821,2]
[380411389,1755748255433,-206.36422837,0.00022821,2]
[380411390,1755748255442,-443.63382076,0.00022821,2]
[380411391,1755748255453,-882.61069654,0.00022899,2]
[380411392,1755748255463,-1622.4737239,0.00022941,2]
[380411393,1755748255473,-160.0,0.00022942,2]
[380411394,1755748255482,-171.45852611,0.0002298,2]
[380411395,1755748255491,-151.0,0.0002298,2]
[380411396,1755748255501,-151.0,0.0002298,2]
[380411397,1755748255510,-151.0,0.0002298,2]
[380411398,1755748255519,-151.0,0.0002298,2]
[380411399,1755748255529,-151.0,0.0002298,2]
[380411400,1755748255539,-151.0,0.0002298,2]
[380411401,1755748255549,-2183.31810187,0.0002298,2]
[380411402,1755748255558,-19187.29552238,0.0002298,2]
[380411403,1755748255568,-599.62,0.00022999,2]
[380411404,1755748255578,-844.19128999,0.00023,3]
[380411405,1755748255587,-232.28399145,0.00023,3]
[380411406,1755748255597,-216.95272161,0.00023,3]
[380411407,1755748255608,-160.0,0.00023,2]
[380411408,1755748255617,-160.0,0.00023,3]
[380411409,1755748255627,-581.1080994,0.00023014,2]
[380411410,1755748255637,-1000.0,0.00023021,2]
[380411411,1755748255647,-750.72281675,0.00023021,2]
[380411412,1755748255656,-1001.58683435,0.00023021,2]
[380411413,1755748255666,-501.37671794,0.00023021,2]
[380411414,1755748255675,-501.23849766,0.00023021,2]
[380411415,1755748255685,-503.30905664,0.00023021,2]
[380411416,1755748255694,-504.31604857,0.00023021,2]
[380411417,1755748255704,-1000.0,0.00023021,2]
[380411418,1755748255713,-503.47677233,0.00023021,2]
[380411419,1755748255722,-464.7111914,0.00023021,2]
[380411420,1755748255731,-1008.5544865,0.00023021,2]
[380411421,1755748255742,-502.168751,0.00023021,2]
[380411422,1755748255751,-502.05150272,0.00023021,2]
[380411423,1755748255760,-1000.0,0.00023021,2]
[380411424,1755748255769,-2264.10087164,0.00023035,2]
[380411425,1755748255779,-157.131811,0.00023035,3]
[380411426,1755748255788,-480.0,0.00023039,3]
[380411427,1755748255797,-737.23,0.00023039,3]
[380411428,1755748255807,-480.0,0.00023039,3]
[380411429,1755748255816,-2701.47,0.00023039,3]
[380411430,1755748255826,-594.33,0.00023039,3]
[380411431,1755748255835,-480.0,0.00023039,2]
[380411432,1755748255845,-480.0,0.00023039,3]
[380411433,1755748255854,-2348.31912447,0.0002304,2]
[380411434,1755748255864,-480.0,0.0002304,3]
[380411435,1755748255874,-480.0,0.0002304,3]
[380411436,1755748255884,-480.0,0.0002304,3]
[380411437,1755748255894,-480.0,0.0002304,3]
[380411438,1755748255904,-480.0,0.0002304,3]
[380411439,1755748255914,-480.0,0.0002304,3]
[380411440,1755748255924,-875.86,0.0002304,3]
[380411441,1755748255934,-480.0,0.0002304,3]
[380411442,1755748255945,-480.0,0.0002304,3]
[380411443,1755748255954,-480.0,0.0002304,3]
[380411444,1755748255963,-480.0,0.0002304,3]
[380411445,1755748255973,-480.0,0.0002304,3]
[380411446,1755748255982,-2638.08,0.0002304,3]
[380411447,1755748255991,-480.0,0.0002304,3]
[380411448,1755748256000,-3300.14,0.0002304,3]
[380411449,1755748256010,-593.7,0.0002304,3]
[380411450,1755748256021,-408.51802236,0.0002304,3]
[380411451,1755748256030,-480.0,0.0002304,3]
[380411452,1755748256040,-480.0,0.0002304,3]
[380411453,1755748256050,-480.0,0.0002304,3]
[380411454,1755748256060,-480.0,0.0002304,3]
[380411455,1755748256070,-480.0,0.0002304,3]
[380411456,1755748256079,-895.67,0.0002304,3]
[380411457,1755748256089,-1399.72,0.0002304,3]
[380411458,1755748256205,-480.0,0.0002304,3]
[380411459,1755748256215,-480.0,0.0002304,3]
[380411460,1755748256224,-444.21174619,0.0002304,3]
[380411461,1755748256233,-480.0,0.0002304,3]
[380411462,1755748256242,-254.60895287,0.0002304,3]
[380411463,1755748256252,-480.0,0.0002304,3]
[380411464,1755748256261,-532.29,0.0002304,3]
[380411465,1755748256271,-480.0,0.0002304,3]
[380411466,1755748256281,-480.0,0.0002304,3]
[380411467,1755748256291,-480.0,0.0002304,3]
[380411468,1755748256301,-480.0,0.0002304,3]
[380411469,1755748256310,-480.0,0.0002304,3]
[380411470,1755748256320,-480.0,0.0002304,3]
[380411471,1755748256341,-480.0,0.0002304,3]
[380411472,1755748256355,-363.82551664,0.0002304,3]
[380411473,1755748256365,-370.04702145,0.0002304,3]
[380411474,1755748256374,-5447.78,0.0002304,3]
[380411475,1755748256383,-674.62,0.0002304,3]
[380411476,1755748256393,-480.0,0.0002304,3]
[380411477,1755748256403,-480.0,0.0002304,3]
[380411478,1755748256413,-480.0,0.0002304,3]
[380411479,1755748256422,-197.45011329,0.0002304,3]
[380411480,1755748256432,-1783.52,0.0002304,3]
[380411481,1755748256442,-465.2,0.0002304,3]
[380411482,1755748256451,-481.60297462,0.0002304,3]
[380411483,1755748256461,-1629.2,0.0002304,3]
[380411484,1755748256471,-480.0,0.0002304,3]
[380411485,1755748256480,-3702.12,0.0002304,3]
[380411486,1755748256490,-480.0,0.0002304,3]
[380411487,1755748256499,-480.0,0.0002304,3]
[380411488,1755748256509,-797.92,0.0002304,3]
[380411489,1755748256518,-480.0,0.0002304,3]
[380411490,1755748256527,-480.0,0.0002304,3]
[380411491,1755748256537,-1864.22,0.0002304,3]
[380411492,1755748256546,-951.75,0.0002304,3]
[380411493,1755748256556,-648.42,0.0002304,3]
[380411494,1755748256565,-2075.22,0.0002304,3]
[380411495,1755748256575,-480.0,0.0002304,3]
[380411496,1755748256584,-480.0,0.0002304,3]
[380411497,1755748256594,-480.0,0.0002304,3]
[380411498,1755748256603,-480.0,0.0002304,3]
[380411499,1755748256613,-1553.46,0.0002304,3]
[380411500,1755748256622,-641.501228,0.0002304,7]
[380411501,1755748256631,-641.501228,0.0002304,7]
[380411502,1755748256641,-641.501228,0.0002304,7]
[380411503,1755748256650,-151.0,0.0002304,7]
[380411504,1755748256659,-641.501228,0.0002304,7]
[380411505,1755748256668,-151.0,0.0002304,7]
[380411506,1755748256678,-151.0,0.0002304,7]
[380411507,1755748256688,-480.0,0.0002304,3]
[380411508,1755748256697,-483.15853832,0.0002304,3]
[380411509,1755748256707,-647.85,0.0002304,3]
[380411510,1755748256716,-480.0,0.0002304,3]
[380411511,1755748256727,-1178.38,0.0002304,3]
[380411512,1755748256736,-480.0,0.0002304,3]
[380411513,1755748256746,-323.84581233,0.0002304,3]
[380411514,1755748256757,-480.0,0.0002304,3]
[380411515,1755748256767,-991.42,0.0002304,3]
[380411516,1755748256776,-1016.85,0.0002304,3]
[380411517,1755748256786,-1057.89,0.0002304,3]
[380411518,1755748256796,-480.0,0.0002304,3]
[380411519,1755748256806,-1512.12,0.0002304,3]
[380411520,1755748256815,-196.308632,0.0002304,7]
[380411521,1755748256825,-564.0,0.0002304,3]
[380411522,1755748256835,-151.335566,0.0002304,7]
[380411523,1755748256846,-151.335566,0.0002304,7]
[380411524,1755748256857,-151.335566,0.0002304,7]
[380411525,1755748256867,-480.0,0.0002304,3]
[380411526,1755748256876,-151.335566,0.0002304,7]
[380411527,1755748256886,-620.0,0.00023041,3]
[380411528,1755748256897,-460.0,0.00023041,3]
[380411529,1755748256907,-483.41100557,0.00023041,3]
[380411530,1755748256919,-453.0404139,0.00023041,3]
[380411531,1755748256928,-446.98922459,0.00023041,3]
[380411532,1755748256937,-353.75507539,0.00023041,2]
[380411533,1755748256947,-444.23951474,0.00023041,3]
[380411534,1755748256957,-480.0,0.00023041,3]
[380411535,1755748256967,-480.0,0.00023041,3]
[380411536,1755748256976,-480.0,0.00023041,3]
[380411537,1755748256986,-559.05,0.00023041,3]
[380411538,1755748256995,-807.92,0.00023041,3]
[380411539,1755748257005,-480.0,0.00023041,3]
[380411540,1755748257014,-480.0,0.00023041,3]
[380411541,1755748257024,-793.66,0.00023041,3]
[380411542,1755748257033,-1428.7,0.00023041,3]
[380411543,1755748257042,-480.0,0.00023041,3]
[380411544,1755748257052,-480.0,0.00023041,3]
[380411545,1755748257061,-480.0,0.00023041,3]
[380411546,1755748257071,-1796.97,0.00023041,3]
[380411547,1755748257080,-298.24121597,0.00023041,3]
[380411548,1755748257089,-480.0,0.00023041,3]
[380411549,1755748257098,-480.0,0.00023041,3]
[380411550,1755748257109,-523.51,0.00023041,3]
[380411551,1755748257118,-382.8431939,0.00023041,3]
[380411552,1755748257127,-480.0,0.00023041,3]
[380411553,1755748257136,-480.0,0.00023041,3]
[380411554,1755748257146,-480.0,0.00023041,3]
[380411555,1755748257155,-715.03,0.00023041,3]
[380411556,1755748257164,-480.0,0.00023041,3]
[380411557,1755748257173,-480.0,0.00023041,3]
[380411558,1755748257183,-480.0,0.00023041,3]
[380411559,1755748257192,-480.0,0.00023041,3]
[380411560,1755748257201,-480.0,0.00023041,3]
[380411561,1755748257210,-480.0,0.00023041,3]
[380411562,1755748257219,-858.71,0.00023041,3]
[380411563,1755748257229,-480.0,0.00023041,3]
[380411564,1755748257238,-480.0,0.00023041,3]
[380411565,1755748257247,-480.0,0.00023041,3]
[380411566,1755748257257,-480.0,0.00023041,3]
[380411567,1755748257266,-480.0,0.00023041,3]
[380411568,1755748257275,-2615.91,0.00023041,3]
[380411569,1755748257285,-441.70233665,0.00023041,3]
[380411570,1755748257294,-480.0,0.00023041,3]
[380411571,1755748257303,-480.0,0.00023041,3]
[380411572,1755748257312,-480.0,0.00023041,3]
[380411573,1755748257323,-480.0,0.00023041,3]
[380411574,1755748257336,-480.0,0.00023041,3]
[380411575,1755748257347,-1149.36,0.00023041,3]
[380411576,1755748257356,-1236.19,0.00023041,3]
[380411577,1755748257366,-915.11,0.00023041,3]
[380411578,1755748257378,-480.0,0.00023041,3]
[380411579,1755748257387,-480.0,0.00023041,3]
[380411580,1755748257398,-480.0,0.00023041,3]
[380411581,1755748257408,-577.4,0.00023041,3]
[380411582,1755748257419,-480.0,0.00023041,3]
[380411583,1755748257429,-2561.11,0.00023041,3]
[380411584,1755748257438,-480.0,0.00023041,3]
[380411585,1755748257448,-480.0,0.00023041,3]
[380411586,1755748257458,-480.0,0.00023041,3]
[380411587,1755748257468,-151.0,0.00023041,7]
[380411588,1755748257478,-1005.05,0.00023041,3]
[380411589,1755748257488,-151.0,0.00023041,7]
[380411590,1755748257498,-151.0,0.00023041,7]
[380411591,1755748257507,-480.0,0.00023041,3]
[380411592,1755748257517,-941.12,0.00023041,3]
[380411593,1755748257527,-151.0,0.00023041,7]
[380411594,1755748257536,-153.628488,0.00023041,7]
[380411595,1755748257546,-151.0,0.00023041,7]
[380411596,1755748257555,-892.24,0.00023041,3]
[380411597,1755748257565,-151.0,0.00023041,7]
[380411598,1755748257574,-282.286048,0.00023041,7]
[380411599,1755748257584,-480.0,0.00023041,3]
[380411600,1755748257594,-480.0,0.00023041,3]
[380411601,1755748257604,-480.0,0.00023041,3]
[380411602,1755748257614,-152.276407,0.00023041,7]
[380411603,1755748257625,-151.762566,0.00023041,7]
[380411604,1755748257634,-480.0,0.00023041,3]
[380411605,1755748257644,-2443.51,0.00023041,3]
[380411606,1755748257653,-480.0,0.00023041,3]
[380411607,1755748257663,-480.0,0.00023041,3]
[380411608,1755748257672,-480.0,0.00023041,3]
[380411609,1755748257681,-480.0,0.00023041,3]
[380411610,1755748257691,-480.0,0.00023041,3]
[380411611,1755748257701,-151.0,0.00023041,7]
[380411612,1755748257710,-480.0,0.00023041,3]
[380411613,1755748257720,-480.0,0.00023041,3]
[380411614,1755748257729,-480.0,0.00023041,3]
[380411615,1755748257739,-151.0,0.00023041,7]
[380411616,1755748257748,-151.0,0.00023041,7]
[380411617,1755748257758,-887.42,0.00023041,3]
[380411618,1755748257767,-151.0,0.00023041,7]
[380411619,1755748257777,-480.0,0.00023041,3]
[380411620,1755748257786,-480.0,0.00023041,3]
[380411621,1755748257796,-151.0,0.00023041,7]
[380411622,1755748257805,-152.93019,0.00023041,7]
[380411623,1755748257815,-152.93019,0.00023041,7]
[380411624,1755748257824,-152.93019,0.00023041,7]
[380411625,1755748257834,-152.93019,0.00023041,7]
[380411626,1755748257844,-480.0,0.00023041,3]
[380411627,1755748257853,-151.0,0.00023041,7]
[380411628,1755748257863,-480.0,0.00023041,3]
[380411629,1755748257873,-5229.65,0.00023041,3]
[380411630,1755748257883,-362.85843307,0.00023041,3]
[380411631,1755748257893,-446.64692778,0.00023041,3]
[380411632,1755748257902,-186.012097,0.00023041,7]
[380411633,1755748257912,-1030.77,0.00023041,3]
[380411634,1755748257923,-540.71,0.00023041,3]
[380411635,1755748257932,-154.071594,0.00023041,7]
[380411636,1755748257943,-480.0,0.00023041,3]
[380411637,1755748258054,-3009.74,0.00023041,3]
[380411638,1755748258063,-480.0,0.00023041,3]
[380411639,1755748258073,-542.96,0.00023041,3]
[380411640,1755748258083,-480.0,0.00023041,3]
[380411641,1755748258092,-480.0,0.00023041,3]
[380411642,1755748258102,-480.0,0.00023041,3]
[380411643,1755748258112,-592.05,0.00023041,3]
[380411644,1755748258121,-480.0,0.00023041,3]
[380411645,1755748258131,-1089.38,0.00023041,3]
[380411646,1755748258140,-480.0,0.00023041,3]
[380411647,1755748258150,-151.0,0.00023041,7]
[380411648,1755748258160,-151.0,0.00023041,7]
[380411649,1755748258169,-480.0,0.00023041,3]
[380411650,1755748258179,-5611.64,0.00023041,3]
[380411651,1755748258189,-151.0,0.00023041,7]
[380411652,1755748258199,-677.02,0.00023041,3]
[380411653,1755748258210,-291.581262,0.00023041,7]
[380411654,1755748258219,-480.0,0.00023041,3]
[380411655,1755748258228,-480.0,0.00023041,3]
[380411656,1755748258238,-480.0,0.00023041,3]
[380411657,1755748258248,-480.0,0.00023041,3]
[380411658,1755748258257,-151.0,0.00023041,7]
[380411659,1755748258268,-151.0,0.00023041,7]
[380411660,1755748258278,-734.67,0.00023041,3]
[380411661,1755748258288,-480.0,0.00023041,3]
[380411662,1755748258298,-151.0,0.00023041,7]
[380411663,1755748258307,-689.18,0.00023041,3]
[380411664,1755748258317,-1840.86,0.00023041,3]
[380411665,1755748258331,-2539.56,0.00023041,3]
[380411666,1755748258341,-695.53,0.00023041,3]
[380411667,1755748258351,-1426.78,0.00023041,3]
[380411668,1755748258360,-2052.92,0.00023041,3]
[380411669,1755748258370,-480.0,0.00023041,3]
[380411670,1755748258380,-1617.96,0.00023041,3]
[380411671,1755748258389,-353.523331,0.00023041,7]
[380411672,1755748258399,-1324.04,0.00023041,3]
[380411673,1755748258410,-353.523331,0.00023041,7]
[380411674,1755748258419,-480.0,0.00023041,3]
[380411675,1755748258429,-353.523331,0.00023041,7]
[380411676,1755748258439,-353.523331,0.00023041,7]
[380411677,1755748258449,-480.0,0.00023041,3]
[380411678,1755748258461,-480.0,0.00023041,3]
[380411679,1755748258471,-744.68,0.00023041,3]
[380411680,1755748258481,-1481.49,0.00023041,3]
[380411681,1755748258491,-153.251458,0.00023041,7]
[380411682,1755748258500,-2492.2,0.00023041,3]
[380411683,1755748258510,-153.251458,0.00023041,7]
[380411684,1755748258519,-153.251458,0.00023041,7]
[380411685,1755748258529,-480.0,0.00023041,3]
[380411686,1755748258539,-153.251458,0.00023041,7]
[380411687,1755748258549,-151.0,0.00023041,7]
[380411688,1755748258559,-842.73,0.00023041,3]
[380411689,1755748258570,-151.0,0.00023041,7]
[380411690,1755748258580,-151.0,0.00023041,7]
[380411691,1755748258590,-585.38,0.00023041,3]
[380411692,1755748258599,-768.11,0.00023041,3]
[380411693,1755748258609,-480.0,0.00023041,3]
[380411694,1755748258619,-553.47,0.00023041,3]
[380411695,1755748258630,-151.0,0.00023041,7]
[380411696,1755748258639,-362.64564615,0.00023041,3]
[380411697,1755748258649,-151.0,0.00023041,7]
[380411698,1755748258658,-242.401377,0.00023041,7]
[380411699,1755748258668,-3317.57,0.00023041,3]
[380411700,1755748258678,-151.0,0.00023041,7]
[380411701,1755748258687,-152.33359,0.00023041,7]
[380411702,1755748258697,-152.33359,0.00023041,7]
[380411703,1755748258707,-152.33359,0.00023041,7]
[380411704,1755748258717,-480.0,0.00023041,3]
[380411705,1755748258726,-152.33359,0.00023041,7]
[380411706,1755748258736,-615.15,0.00023041,3]
[380411707,1755748258746,-3072.41,0.00023041,3]
[380411708,1755748258756,-695.53,0.00023041,3]
[380411709,1755748258765,-916.31,0.00023041,3]
[380411710,1755748258775,-480.0,0.00023041,3]
[380411711,1755748258785,-480.0,0.00023041,3]
[380411712,1755748258795,-480.0,0.00023041,3]
[380411713,1755748258804,-480.0,0.00023041,3]
[380411714,1755748258814,-7252.87,0.00023041,3]
[380411715,1755748258824,-627.68,0.00023041,3]
[380411716,1755748258833,-480.0,0.00023041,3]
[380411717,1755748258842,-480.0,0.00023041,3]
[380411718,1755748258852,-2884.97,0.00023041,3]
[380411719,1755748258862,-4748.18,0.00023041,3]
[380411720,1755748258872,-480.0,0.00023041,3]
[380411721,1755748258882,-510.54,0.00023041,3]
[380411722,1755748258892,-322.80496307,0.00023042,3]
[380411723,1755748258902,-480.0,0.00023042,3]
[380411724,1755748258912,-480.0,0.00023042,3]
[380411725,1755748258922,-480.0,0.00023042,3]
[380411726,1755748258932,-480.0,0.00023042,3]
[380411727,1755748258943,-480.0,0.00023042,3]
[380411728,1755748258953,-206.07118513,0.00023042,3]
[380411729,1755748258963,-480.0,0.00023042,3]
[380411730,1755748258972,-480.0,0.00023042,3]
[380411731,1755748258982,-499.77230919,0.00023042,3]
[380411732,1755748258992,-480.0,0.00023042,3]
[380411733,1755748259002,-254.18910015,0.00023042,3]
[380411734,1755748259011,-480.0,0.00023042,3]
[380411735,1755748259021,-480.0,0.00023042,3]
[380411736,1755748259031,-480.0,0.00023042,3]
[380411737,1755748259040,-480.0,0.00023042,3]
[380411738,1755748259049,-563.96,0.00023042,3]
[380411739,1755748259059,-480.0,0.00023042,3]
[380411740,1755748259068,-480.0,0.00023042,3]
[380411741,1755748259077,-480.0,0.00023042,3]
[380411742,1755748259086,-480.0,0.00023042,3]
[380411743,1755748259096,-480.0,0.00023042,3]
[380411744,1755748259106,-480.0,0.00023042,3]
[380411745,1755748259116,-480.0,0.00023042,3]
[380411746,1755748259125,-480.0,0.00023042,3]
[380411747,1755748259137,-480.0,0.00023042,3]
[380411748,1755748259148,-437.94841319,0.00023042,3]
[380411749,1755748259157,-480.0,0.00023042,3]
[380411750,1755748259167,-480.0,0.00023042,3]
[380411751,1755748259177,-480.0,0.00023042,3]
[380411752,1755748259186,-480.0,0.00023042,3]
[380411753,1755748259196,-480.0,0.00023042,3]
[380411754,1755748259208,-151.664793,0.00023042,7]
[380411755,1755748259217,-480.0,0.00023042,3]
[380411756,1755748259227,-480.0,0.00023042,3]
[380411757,1755748259237,-480.0,0.00023042,3]
[380411758,1755748259258,-1056.3,0.00023042,3]
[380411759,1755748259267,-151.0,0.00023042,7]
[380411760,1755748259276,-245.73751231,0.00023042,3]
[380411761,1755748259286,-151.0,0.00023042,7]
[380411762,1755748259296,-480.0,0.00023042,3]
[380411763,1755748259305,-480.0,0.00023042,3]
[380411764,1755748259315,-480.0,0.00023042,3]
[380411765,1755748259327,-549.69,0.00023042,3]
[380411766,1755748259338,-480.0,0.00023042,3]
[380411767,1755748259348,-480.0,0.00023042,3]
[380411768,1755748259358,-480.0,0.00023042,3]
[380411769,1755748259367,-480.0,0.00023042,3]
[380411770,1755748259377,-480.0,0.00023042,3]
[380411771,1755748259387,-672.59,0.00023042,3]
[380411772,1755748259398,-480.0,0.00023042,3]
[380411773,1755748259410,-442.89148615,0.00023042,3]
[380411774,1755748259420,-480.0,0.00023042,3]
[380411775,1755748259430,-480.0,0.00023042,3]
[380411776,1755748259440,-480.0,0.00023042,3]
[380411777,1755748259451,-3167.79,0.00023042,3]
[380411778,1755748259463,-480.0,0.00023042,3]
[380411779,1755748259473,-480.0,0.00023042,3]
[380411780,1755748259488,-1252.19,0.00023042,3]
[380411781,1755748259497,-480.0,0.00023042,3]
[380411782,1755748259506,-480.0,0.00023042,3]
[380411783,1755748259516,-582.11,0.00023042,3]
[380411784,1755748259526,-480.0,0.00023042,3]
[380411785,1755748259537,-480.0,0.00023042,3]
[380411786,1755748259547,-480.0,0.00023042,3]
[380411787,1755748259558,-224.17209468,0.00023042,3]
[380411788,1755748259568,-480.0,0.00023042,3]
[380411789,1755748259579,-480.0,0.00023042,3]
[380411790,1755748259589,-448.01299912,0.00023042,3]
[380411791,1755748259599,-480.0,0.00023042,3]
[380411792,1755748259609,-480.0,0.00023042,3]
[380411793,1755748259619,-480.0,0.00023042,3]
[380411794,1755748259629,-480.0,0.00023042,3]
[380411795,1755748259639,-480.0,0.00023042,3]
[380411796,1755748259648,-480.0,0.00023042,3]
[380411797,1755748259658,-480.0,0.00023042,3]
[380411798,1755748259667,-2347.87260389,0.0002309,2]
[380411799,1755748259678,-192.3318,0.0002309,7]
[380411800,1755748259688,-151.0,0.0002309,7]
[380411801,1755748259697,-151.0,0.0002309,7]
[380411802,1755748259800,-151.596197,0.0002309,7]
[380411803,1755748259810,-2434.74389024,0.00023145,2]
[380411804,1755748259820,-151.0,0.00023175,7]
[380411805,1755748259830,-151.0,0.00023175,7]
[380411806,1755748259839,-151.0,0.00023175,7]
[380411807,1755748259849,-212.002781,0.00023175,7]
[380411808,1755748259859,-151.0,0.00023175,7]
[380411809,1755748259869,-151.0,0.00023175,7]
[380411810,1755748259879,-151.0,0.00023175,7]
[380411811,1755748259888,-185.75986,0.00023175,7]
[380411812,1755748259897,-185.75986,0.00023175,7]
[380411813,1755748259907,-185.75986,0.00023175,7]
[380411814,1755748259917,-185.75986,0.00023175,7]